[Event "December 19 Late 2023"]
[Site "https://www.chess.com"]
[Date "2023.12.19"]
[Round "4"]
[White "Gulamirian, Korun"]
[Black "Romero Ruscalleda, Josep"]
[Result "0-1"]
[Board "171"]
[TimeControl "180+1"]
[WhiteFideId "4144899"]
[BlackFideId "2231859"]
[WhiteElo "1621"]
[BlackElo "2200"]
[WhiteTeam "RUS"]
[BlackTeam "ESP"]
[WhiteClock "0:00:51"]
[BlackClock "0:00:55"]

1. e4 {[%clk 0:02:52]}  g6 {[%clk 0:03:00]} 2. d4 {[%clk 0:02:51]}  Bg7 {[%clk 0:03:01]} 3. f4 {[%clk 0:02:50]}  d6 {[%clk 0:03:01]} 4. Nf3 {[%clk 0:02:50]}  Bg4 {[%clk 0:02:59]} 5. Be3 {[%clk 0:02:49]}  Nc6 {[%clk 0:02:59]} 6. c3 {[%clk 0:02:48]}  Nf6 {[%clk 0:02:56]} 7. Nbd2 {[%clk 0:02:46]}  O-O {[%clk 0:02:55]} 8. Be2 {[%clk 0:02:45]}  e5 {[%clk 0:02:53]} 9. d5 {[%clk 0:02:37]}  exf4 {[%clk 0:02:52]} 10. Bxf4 {[%clk 0:02:36]}  Ne7 {[%clk 0:02:48]} 11. h3 {[%clk 0:02:36]}  Bd7 {[%clk 0:02:46]} 12. O-O {[%clk 0:02:34]}  Re8 {[%clk 0:02:37]} 13. Bd3 {[%clk 0:02:26]}  Nh5 {[%clk 0:02:23]} 14. Bh2 {[%clk 0:02:20]}  Bh6 {[%clk 0:02:22]} 15. Qc2 {[%clk 0:02:20]}  Qc8 {[%clk 0:02:14]} 16. h4 {[%clk 0:01:59]}  Bg4 {[%clk 0:02:06]} 17. Nd4 {[%clk 0:01:51]}  Qd7 {[%clk 0:01:52]} 18. N2f3 {[%clk 0:01:46]}  c5 {[%clk 0:01:47]} 19. Bb5 {[%clk 0:01:42]}  Qc7 {[%clk 0:01:38]} 20. Bxe8 {[%clk 0:01:41]}  cxd4 {[%clk 0:01:37]} 21. Nxd4 {[%clk 0:01:41]}  Rxe8 {[%clk 0:01:30]} 22. Nb5 {[%clk 0:01:39]}  Qc5+ {[%clk 0:01:20]} 23. Nd4 {[%clk 0:01:38]}  Be3+ {[%clk 0:01:15]} 24. Kh1 {[%clk 0:01:37]}  Bxd4 {[%clk 0:01:15]} 25. Rac1 {[%clk 0:01:19]}  Be5 {[%clk 0:01:12]} 26. b4 {[%clk 0:01:10]}  Qe3 {[%clk 0:01:03]} 27. Rce1 {[%clk 0:01:01]}  Ng3+ {[%clk 0:00:59]} 28. Bxg3 {[%clk 0:01:00]}  Qxg3 {[%clk 0:00:59]} 29. Rf2 {[%clk 0:00:51]}  Qh2# {[%clk 0:00:55]} 0-1

[Event "December 19 Late 2023"]
[Site "https://www.chess.com"]
[Date "2023.12.19"]
[Round "4"]
[White "Khokhlova, Daria"]
[Black "Desideri, Ricardo Maruchi"]
[Result "1-0"]
[Board "172"]
[TimeControl "180+1"]
[WhiteFideId "24182729"]
[BlackFideId "2110440"]
[WhiteElo "2032"]
[BlackElo "1945"]
[WhiteTeam "FID"]
[BlackTeam "BRA"]
[WhiteClock "0:00:11"]
[BlackClock "0:00:00"]

1. d4 {[%clk 0:03:00]}  Nf6 {[%clk 0:02:59]} 2. c4 {[%clk 0:03:01]}  c5 {[%clk 0:02:59]} 3. d5 {[%clk 0:03:00]}  e6 {[%clk 0:03:00]} 4. Nc3 {[%clk 0:03:00]}  exd5 {[%clk 0:03:01]} 5. cxd5 {[%clk 0:03:01]}  d6 {[%clk 0:03:01]} 6. Nf3 {[%clk 0:03:01]}  g6 {[%clk 0:03:02]} 7. g3 {[%clk 0:03:01]}  Bg7 {[%clk 0:03:02]} 8. Bg2 {[%clk 0:03:02]}  O-O {[%clk 0:03:02]} 9. O-O {[%clk 0:03:02]}  Re8 {[%clk 0:02:59]} 10. a4 {[%clk 0:03:02]}  b6 {[%clk 0:02:58]} 11. Re1 {[%clk 0:02:57]}  Bf5 {[%clk 0:02:54]} 12. Nd2 {[%clk 0:02:55]}  Qd7 {[%clk 0:02:50]} 13. e4 {[%clk 0:02:53]}  Bh3 {[%clk 0:02:50]} 14. Bh1 {[%clk 0:02:53]}  Na6 {[%clk 0:02:37]} 15. Nc4 {[%clk 0:02:52]}  Nb4 {[%clk 0:02:02]} 16. Bf4 {[%clk 0:02:48]}  Bf8 {[%clk 0:02:02]} 17. e5 {[%clk 0:02:40]}  Nh5 {[%clk 0:01:56]} 18. Bg5 {[%clk 0:02:18]}  h6 {[%clk 0:01:41]} 19. Bc1 {[%clk 0:02:02]}  Ng7 {[%clk 0:01:31]} 20. Bxh6 {[%clk 0:01:58]}  Nf5 {[%clk 0:01:32]} 21. Bxf8 {[%clk 0:01:57]}  Rxf8 {[%clk 0:01:27]} 22. e6 {[%clk 0:01:57]}  Qe7 {[%clk 0:01:11]} 23. Qd2 {[%clk 0:01:41]}  Kg7 {[%clk 0:01:02]} 24. Rad1 {[%clk 0:01:08]}  Rad8 {[%clk 0:01:00]} 25. Bg2 {[%clk 0:00:47]}  Bxg2 {[%clk 0:00:58]} 26. Kxg2 {[%clk 0:00:48]}  f6 {[%clk 0:00:58]} 27. Ne3 {[%clk 0:00:43]}  Nd4 {[%clk 0:00:46]} 28. Ne2 {[%clk 0:00:36]}  Nxe2 {[%clk 0:00:37]} 29. Rxe2 {[%clk 0:00:36]}  Rh8 {[%clk 0:00:36]} 30. h4 {[%clk 0:00:31]}  Rh7 {[%clk 0:00:27]} 31. Qc3 {[%clk 0:00:30]}  Rdh8 {[%clk 0:00:26]} 32. Rg1 {[%clk 0:00:27]}  Kf8 {[%clk 0:00:21]} 33. Rd1 {[%clk 0:00:22]}  g5 {[%clk 0:00:20]} 34. Ng4 {[%clk 0:00:20]}  gxh4 {[%clk 0:00:17]} 35. Qxf6+ {[%clk 0:00:16]}  Qxf6 {[%clk 0:00:16]} 36. Nxf6 {[%clk 0:00:17]}  h3+ {[%clk 0:00:15]} 37. Kh2 {[%clk 0:00:17]}  Rh6 {[%clk 0:00:14]} 38. Ne4 {[%clk 0:00:17]}  Ke7 {[%clk 0:00:13]} 39. f4 {[%clk 0:00:16]}  Rg8 {[%clk 0:00:11]} 40. Nc3 {[%clk 0:00:13]}  Rhg6 {[%clk 0:00:10]} 41. f5 {[%clk 0:00:12]}  Rxg3 {[%clk 0:00:09]} 42. f6+ {[%clk 0:00:12]}  Kxf6 {[%clk 0:00:09]} 43. e7 {[%clk 0:00:12]}  Rg2+ {[%clk 0:00:07]} 44. Rxg2 {[%clk 0:00:11]}  Rxg2+ {[%clk 0:00:08]} 45. Kxh3 {[%clk 0:00:11]}  Rg8 {[%clk 0:00:03]} 46. Re1 {[%clk 0:00:12]}  Re8 {[%clk 0:00:02]} 47. Re6+ {[%clk 0:00:11]}  Kf7 {[%clk 0:00:02]} 48. Ne4 {[%clk 0:00:11]}  Rxe7 {[%clk 0:00:00]} 49. Nxd6+ {[%clk 0:00:11]} 1-0

[Event "December 19 Late 2023"]
[Site "https://www.chess.com"]
[Date "2023.12.19"]
[Round "4"]
[White "Igel2023"]
[Black "Thake, Conrad"]
[Result "1-0"]
[Board "175"]
[TimeControl "180+1"]
[BlackFideId "5602947"]
[WhiteElo "2231"]
[BlackElo "1662"]
[BlackTeam "MLT"]
[WhiteClock "0:01:11"]
[BlackClock "0:00:00"]

1. e4 {[%clk 0:02:56]}  e6 {[%clk 0:02:59]} 2. d4 {[%clk 0:02:55]}  d5 {[%clk 0:02:59]} 3. Nd2 {[%clk 0:02:56]}  Nf6 {[%clk 0:02:58]} 4. e5 {[%clk 0:02:56]}  Nfd7 {[%clk 0:02:58]} 5. Bd3 {[%clk 0:02:56]}  c5 {[%clk 0:02:58]} 6. c3 {[%clk 0:02:57]}  Nc6 {[%clk 0:02:57]} 7. Ne2 {[%clk 0:02:57]}  Qb6 {[%clk 0:02:57]} 8. Nf3 {[%clk 0:02:54]}  cxd4 {[%clk 0:02:53]} 9. cxd4 {[%clk 0:02:55]}  Bb4+ {[%clk 0:02:45]} 10. Bd2 {[%clk 0:02:54]}  a6 {[%clk 0:02:40]} 11. O-O {[%clk 0:02:53]}  Bxd2 {[%clk 0:02:38]} 12. Qxd2 {[%clk 0:02:53]}  Qb4 {[%clk 0:02:32]} 13. Qf4 {[%clk 0:02:22]}  Qe7 {[%clk 0:02:10]} 14. Ng3 {[%clk 0:02:16]}  h6 {[%clk 0:02:08]} 15. Nh5 {[%clk 0:02:16]}  O-O {[%clk 0:02:04]} 16. Qg4 {[%clk 0:02:12]}  f5 {[%clk 0:01:44]} 17. exf6 {[%clk 0:02:08]}  Rxf6 {[%clk 0:01:29]} 18. Nxf6+ {[%clk 0:02:04]}  Nxf6 {[%clk 0:01:29]} 19. Qh4 {[%clk 0:01:57]}  b5 {[%clk 0:01:24]} 20. Rfe1 {[%clk 0:01:51]}  Bd7 {[%clk 0:01:19]} 21. Ne5 {[%clk 0:01:49]}  Be8 {[%clk 0:00:50]} 22. Nxc6 {[%clk 0:01:41]}  Bxc6 {[%clk 0:00:48]} 23. Rac1 {[%clk 0:01:42]}  Rc8 {[%clk 0:00:43]} 24. a4 {[%clk 0:01:35]}  bxa4 {[%clk 0:00:42]} 25. Bxa6 {[%clk 0:01:34]}  Rc7 {[%clk 0:00:43]} 26. h3 {[%clk 0:01:27]}  Kh7 {[%clk 0:00:36]} 27. Bd3+ {[%clk 0:01:24]}  g6 {[%clk 0:00:31]} 28. Rc5 {[%clk 0:01:16]}  Qg7 {[%clk 0:00:14]} 29. Rec1 {[%clk 0:01:12]}  a3 {[%clk 0:00:00]} 30. bxa3 {[%clk 0:01:11]} 1-0

[Event "December 19 Late 2023"]
[Site "https://www.chess.com"]
[Date "2023.12.19"]
[Round "5"]
[White "Zakhartsov, Vladimir"]
[Black "Sarana, Alexey"]
[Result "0-1"]
[Board "3"]
[TimeControl "180+1"]
[WhiteFideId "4145097"]
[BlackFideId "24133795"]
[WhiteElo "2448"]
[BlackElo "2707"]
[WhiteTeam "RUS"]
[BlackTeam "SRB"]
[WhiteClock "0:00:02"]
[BlackClock "0:00:28"]

1. Nf3 {[%clk 0:02:58]}  d5 {[%clk 0:02:58]} 2. g3 {[%clk 0:02:59]}  Nf6 {[%clk 0:02:58]} 3. Bg2 {[%clk 0:02:59]}  g6 {[%clk 0:02:58]} 4. c4 {[%clk 0:02:57]}  c6 {[%clk 0:02:56]} 5. cxd5 {[%clk 0:02:56]}  cxd5 {[%clk 0:02:56]} 6. d4 {[%clk 0:02:56]}  Bg7 {[%clk 0:02:56]} 7. Nc3 {[%clk 0:02:54]}  O-O {[%clk 0:02:57]} 8. Ne5 {[%clk 0:02:54]}  e6 {[%clk 0:02:55]} 9. O-O {[%clk 0:02:53]}  Nfd7 {[%clk 0:02:53]} 10. Nxd7 {[%clk 0:02:48]}  Bxd7 {[%clk 0:02:52]} 11. Bf4 {[%clk 0:02:47]}  Bc6 {[%clk 0:02:51]} 12. Qd2 {[%clk 0:02:34]}  Nd7 {[%clk 0:02:52]} 13. h4 {[%clk 0:02:31]}  h5 {[%clk 0:02:51]} 14. Rfd1 {[%clk 0:02:29]}  Rc8 {[%clk 0:02:51]} 15. Rac1 {[%clk 0:02:23]}  Qb6 {[%clk 0:02:50]} 16. Rc2 {[%clk 0:02:08]}  Rfd8 {[%clk 0:02:41]} 17. Bg5 {[%clk 0:02:07]}  Re8 {[%clk 0:02:41]} 18. e3 {[%clk 0:02:05]}  Nf6 {[%clk 0:02:29]} 19. Rdc1 {[%clk 0:02:01]}  Ng4 {[%clk 0:02:21]} 20. b3 {[%clk 0:01:42]}  Bf8 {[%clk 0:02:16]} 21. Na4 {[%clk 0:01:42]}  Qc7 {[%clk 0:02:10]} 22. Bf4 {[%clk 0:01:38]}  Qd8 {[%clk 0:02:07]} 23. Nc5 {[%clk 0:01:38]}  Qf6 {[%clk 0:01:39]} 24. Nd3 {[%clk 0:01:34]}  Ba3 {[%clk 0:01:36]} 25. Rf1 {[%clk 0:01:31]}  Bb5 {[%clk 0:01:35]} 26. Rd1 {[%clk 0:01:16]}  Qf5 {[%clk 0:01:28]} 27. f3 {[%clk 0:00:57]}  Qxd3 {[%clk 0:01:12]} 28. Rxc8 {[%clk 0:00:46]}  Rxc8 {[%clk 0:01:08]} 29. Qxd3 {[%clk 0:00:46]}  Bxd3 {[%clk 0:01:08]} 30. Rxd3 {[%clk 0:00:43]}  Rc1+ {[%clk 0:01:07]} 31. Bf1 {[%clk 0:00:43]}  Nh2 {[%clk 0:01:05]} 32. Kxh2 {[%clk 0:00:43]}  Rxf1 {[%clk 0:01:06]} 33. Rd2 {[%clk 0:00:31]}  Rc1 {[%clk 0:00:59]} 34. e4 {[%clk 0:00:27]}  Rc3 {[%clk 0:00:52]} 35. Kg2 {[%clk 0:00:26]}  f6 {[%clk 0:00:49]} 36. exd5 {[%clk 0:00:18]}  exd5 {[%clk 0:00:50]} 37. Kf2 {[%clk 0:00:17]}  Bc1 {[%clk 0:00:43]} 38. Re2 {[%clk 0:00:14]}  Bxf4 {[%clk 0:00:44]} 39. gxf4 {[%clk 0:00:15]}  Kf7 {[%clk 0:00:45]} 40. f5 {[%clk 0:00:11]}  gxf5 {[%clk 0:00:41]} 41. Kg3 {[%clk 0:00:12]}  Rd3 {[%clk 0:00:41]} 42. Rc2 {[%clk 0:00:12]}  Rxd4 {[%clk 0:00:41]} 43. Rc7+ {[%clk 0:00:12]}  Kg6 {[%clk 0:00:42]} 44. Rxb7 {[%clk 0:00:10]}  f4+ {[%clk 0:00:42]} 45. Kh3 {[%clk 0:00:08]}  Rd3 {[%clk 0:00:42]} 46. Rxa7 {[%clk 0:00:09]}  Rxf3+ {[%clk 0:00:42]} 47. Kg2 {[%clk 0:00:09]}  Rd3 {[%clk 0:00:42]} 48. Rb7 {[%clk 0:00:08]}  Kf5 {[%clk 0:00:42]} 49. a4 {[%clk 0:00:08]}  Kg4 {[%clk 0:00:42]} 50. a5 {[%clk 0:00:09]}  f3+ {[%clk 0:00:40]} 51. Kf1 {[%clk 0:00:06]}  Rd1+ {[%clk 0:00:40]} 52. Kf2 {[%clk 0:00:06]}  Rd2+ {[%clk 0:00:40]} 53. Kf1 {[%clk 0:00:05]}  Ra2 {[%clk 0:00:31]} 54. b4 {[%clk 0:00:05]}  d4 {[%clk 0:00:31]} 55. Rd7 {[%clk 0:00:05]}  Kg3 {[%clk 0:00:32]} 56. Rg7+ {[%clk 0:00:05]}  Kf4 {[%clk 0:00:32]} 57. Rd7 {[%clk 0:00:05]}  f5 {[%clk 0:00:29]} 58. Re7 {[%clk 0:00:02]}  d3 {[%clk 0:00:28]} 59. Rd7 {[%clk 0:00:02]}  d2 {[%clk 0:00:28]} 60. Kf2 {[%clk 0:00:02]}  d1=Q+ {[%clk 0:00:28]} 0-1

[Event "December 19 Late 2023"]
[Site "https://www.chess.com"]
[Date "2023.12.19"]
[Round "5"]
[White "Ivic, Velimir"]
[Black "Maksimovic, Bojan"]
[Result "0-1"]
[Board "4"]
[TimeControl "180+1"]
[WhiteFideId "950122"]
[BlackFideId "14408120"]
[WhiteElo "2542"]
[BlackElo "2527"]
[WhiteTeam "SRB"]
[BlackTeam "BIH"]
[WhiteClock "0:00:04"]
[BlackClock "0:00:12"]

1. e4 {[%clk 0:03:00]}  e6 {[%clk 0:03:00]} 2. d4 {[%clk 0:03:00]}  a6 {[%clk 0:03:01]} 3. Bd3 {[%clk 0:02:59]}  d5 {[%clk 0:03:01]} 4. e5 {[%clk 0:02:58]}  c5 {[%clk 0:03:01]} 5. c3 {[%clk 0:02:59]}  Bd7 {[%clk 0:03:01]} 6. Nf3 {[%clk 0:02:58]}  cxd4 {[%clk 0:03:02]} 7. cxd4 {[%clk 0:02:58]}  Bb5 {[%clk 0:03:02]} 8. O-O {[%clk 0:02:58]}  Nc6 {[%clk 0:03:02]} 9. Nc3 {[%clk 0:02:58]}  Bxd3 {[%clk 0:03:00]} 10. Qxd3 {[%clk 0:02:59]}  Bb4 {[%clk 0:02:54]} 11. h4 {[%clk 0:02:59]}  Nge7 {[%clk 0:02:52]} 12. h5 {[%clk 0:02:59]}  h6 {[%clk 0:02:52]} 13. Ne2 {[%clk 0:02:48]}  Rc8 {[%clk 0:02:50]} 14. a3 {[%clk 0:02:42]}  Ba5 {[%clk 0:02:50]} 15. Ng3 {[%clk 0:02:27]}  O-O {[%clk 0:02:42]} 16. Be3 {[%clk 0:02:25]}  f6 {[%clk 0:02:36]} 17. exf6 {[%clk 0:02:20]}  Rxf6 {[%clk 0:02:37]} 18. Rac1 {[%clk 0:02:05]}  Bc7 {[%clk 0:02:35]} 19. Bd2 {[%clk 0:01:50]}  Qe8 {[%clk 0:02:17]} 20. Rfe1 {[%clk 0:01:05]}  Bxg3 {[%clk 0:02:02]} 21. fxg3 {[%clk 0:01:06]}  Qxh5 {[%clk 0:02:02]} 22. Bf4 {[%clk 0:01:07]}  Rcf8 {[%clk 0:02:01]} 23. Rc2 {[%clk 0:00:58]}  Nf5 {[%clk 0:01:14]} 24. Rce2 {[%clk 0:00:54]}  g5 {[%clk 0:01:09]} 25. Be5 {[%clk 0:00:48]}  R6f7 {[%clk 0:00:43]} 26. Nh2 {[%clk 0:00:44]}  Nxe5 {[%clk 0:00:21]} 27. Rxe5 {[%clk 0:00:44]}  Ng7 {[%clk 0:00:22]} 28. R5e2 {[%clk 0:00:20]}  Rf6 {[%clk 0:00:22]} 29. g4 {[%clk 0:00:17]}  Qg6 {[%clk 0:00:21]} 30. Qxg6 {[%clk 0:00:15]}  Rxg6 {[%clk 0:00:22]} 31. Nf3 {[%clk 0:00:15]}  Rc8 {[%clk 0:00:14]} 32. Re3 {[%clk 0:00:10]}  Rf6 {[%clk 0:00:14]} 33. Rb3 {[%clk 0:00:10]}  Rc7 {[%clk 0:00:14]} 34. Rb6 {[%clk 0:00:11]}  Rf4 {[%clk 0:00:13]} 35. Re3 {[%clk 0:00:07]}  Rxg4 {[%clk 0:00:13]} 36. Reb3 {[%clk 0:00:08]}  Rf4 {[%clk 0:00:10]} 37. Rxb7 {[%clk 0:00:08]}  Rxb7 {[%clk 0:00:11]} 38. Rxb7 {[%clk 0:00:09]}  Nf5 {[%clk 0:00:07]} 39. Rb6 {[%clk 0:00:08]}  g4 {[%clk 0:00:04]} 40. Ne5 {[%clk 0:00:09]}  Rxd4 {[%clk 0:00:04]} 41. Rxe6 {[%clk 0:00:08]}  g3 {[%clk 0:00:05]} 42. Kf1 {[%clk 0:00:06]}  Rd2 {[%clk 0:00:05]} 43. b4 {[%clk 0:00:01]}  Rf2+ {[%clk 0:00:05]} 44. Ke1 {[%clk 0:00:01]}  Rxg2 {[%clk 0:00:05]} 45. Rg6+ {[%clk 0:00:02]}  Kh7 {[%clk 0:00:03]} 46. Rf6 {[%clk 0:00:03]}  Nd4 {[%clk 0:00:02]} 47. Rf7+ {[%clk 0:00:02]}  Kg8 {[%clk 0:00:03]} 48. Rf4 {[%clk 0:00:03]}  Re2+ {[%clk 0:00:03]} 49. Kf1 {[%clk 0:00:04]}  Rxe5 {[%clk 0:00:03]} 50. Rxd4 {[%clk 0:00:05]}  h5 {[%clk 0:00:04]} 51. Kg2 {[%clk 0:00:05]}  Rg5 {[%clk 0:00:04]} 52. a4 {[%clk 0:00:06]}  Kf7 {[%clk 0:00:04]} 53. b5 {[%clk 0:00:06]}  axb5 {[%clk 0:00:05]} 54. axb5 {[%clk 0:00:07]}  Ke6 {[%clk 0:00:05]} 55. b6 {[%clk 0:00:07]}  Rg7 {[%clk 0:00:05]} 56. Rb4 {[%clk 0:00:08]}  Rb7 {[%clk 0:00:04]} 57. Kxg3 {[%clk 0:00:08]}  Kd6 {[%clk 0:00:05]} 58. Kf3 {[%clk 0:00:06]}  Kc5 {[%clk 0:00:05]} 59. Rh4 {[%clk 0:00:07]}  Rxb6 {[%clk 0:00:06]} 60. Rxh5 {[%clk 0:00:08]}  Re6 {[%clk 0:00:06]} 61. Rh8 {[%clk 0:00:02]}  d4 {[%clk 0:00:07]} 62. Rc8+ {[%clk 0:00:01]}  Kd5 {[%clk 0:00:07]} 63. Kf2 {[%clk 0:00:02]}  d3 {[%clk 0:00:07]} 64. Rd8+ {[%clk 0:00:02]}  Kc4 {[%clk 0:00:07]} 65. Rc8+ {[%clk 0:00:03]}  Kd4 {[%clk 0:00:08]} 66. Rd8+ {[%clk 0:00:04]}  Kc3 {[%clk 0:00:08]} 67. Kf1 {[%clk 0:00:04]}  d2 {[%clk 0:00:08]} 68. Rc8+ {[%clk 0:00:05]}  Kd3 {[%clk 0:00:08]} 69. Rd8+ {[%clk 0:00:05]}  Kc2 {[%clk 0:00:09]} 70. Rc8+ {[%clk 0:00:06]}  Kd1 {[%clk 0:00:10]} 71. Rc4 {[%clk 0:00:06]}  Rf6+ {[%clk 0:00:10]} 72. Kg2 {[%clk 0:00:07]}  Rf5 {[%clk 0:00:10]} 73. Rc8 {[%clk 0:00:01]}  Ke2 {[%clk 0:00:10]} 74. Re8+ {[%clk 0:00:02]}  Kd3 {[%clk 0:00:11]} 75. Rd8+ {[%clk 0:00:03]}  Ke3 {[%clk 0:00:12]} 76. Re8+ {[%clk 0:00:04]}  Kd4 {[%clk 0:00:12]} 0-1

[Event "December 19 Late 2023"]
[Site "https://www.chess.com"]
[Date "2023.12.19"]
[Round "5"]
[White "Zhigalko, Sergei"]
[Black "Duda, Jan-Krzysztof"]
[Result "0-1"]
[Board "10"]
[TimeControl "180+1"]
[WhiteFideId "13502956"]
[BlackFideId "1170546"]
[WhiteElo "2616"]
[BlackElo "2775"]
[WhiteTeam "BLR"]
[BlackTeam "POL"]
[WhiteClock "0:00:00"]
[BlackClock "0:00:09"]

1. e4 {[%clk 0:03:00]}  c6 {[%clk 0:03:00]} 2. d4 {[%clk 0:03:00]}  d5 {[%clk 0:03:00]} 3. e5 {[%clk 0:02:59]}  Bf5 {[%clk 0:03:00]} 4. Nf3 {[%clk 0:02:58]}  e6 {[%clk 0:03:00]} 5. Be2 {[%clk 0:02:58]}  c5 {[%clk 0:02:59]} 6. Be3 {[%clk 0:02:57]}  Qb6 {[%clk 0:02:58]} 7. Nc3 {[%clk 0:02:55]}  Nc6 {[%clk 0:02:58]} 8. dxc5 {[%clk 0:02:54]}  Bxc5 {[%clk 0:02:56]} 9. Bxc5 {[%clk 0:02:55]}  Qxc5 {[%clk 0:02:57]} 10. Nb5 {[%clk 0:02:56]}  Kf8 {[%clk 0:02:57]} 11. Nbd4 {[%clk 0:02:55]}  Nge7 {[%clk 0:02:57]} 12. O-O {[%clk 0:02:50]}  Qb6 {[%clk 0:02:50]} 13. Nxf5 {[%clk 0:02:36]}  Nxf5 {[%clk 0:02:50]} 14. Bd3 {[%clk 0:02:36]}  Nfd4 {[%clk 0:02:48]} 15. Re1 {[%clk 0:02:29]}  Nxf3+ {[%clk 0:02:32]} 16. Qxf3 {[%clk 0:02:30]}  Qxb2 {[%clk 0:02:32]} 17. Rab1 {[%clk 0:02:31]}  Qc3 {[%clk 0:02:33]} 18. Re3 {[%clk 0:02:22]}  Nxe5 {[%clk 0:02:19]} 19. Qf4 {[%clk 0:02:21]}  Nxd3 {[%clk 0:02:13]} 20. Rxd3 {[%clk 0:02:11]}  Qxc2 {[%clk 0:01:57]} 21. Rdb3 {[%clk 0:01:54]}  b6 {[%clk 0:01:45]} 22. Rc1 {[%clk 0:01:54]}  Qe4 {[%clk 0:01:38]} 23. Qc7 {[%clk 0:01:10]}  h5 {[%clk 0:01:07]} 24. Rf3 {[%clk 0:00:54]}  Qg6 {[%clk 0:01:05]} 25. Qb7 {[%clk 0:00:20]}  Re8 {[%clk 0:01:05]} 26. h3 {[%clk 0:00:17]}  Kg8 {[%clk 0:00:58]} 27. Qxa7 {[%clk 0:00:12]}  Rh6 {[%clk 0:00:48]} 28. Qxb6 {[%clk 0:00:07]}  Qg5 {[%clk 0:00:46]} 29. Qc6 {[%clk 0:00:05]}  Rf8 {[%clk 0:00:27]} 30. a4 {[%clk 0:00:05]}  h4 {[%clk 0:00:24]} 31. a5 {[%clk 0:00:05]}  Rg6 {[%clk 0:00:24]} 32. g4 {[%clk 0:00:04]}  hxg3 {[%clk 0:00:22]} 33. Rxg3 {[%clk 0:00:04]}  Qf5 {[%clk 0:00:20]} 34. a6 {[%clk 0:00:03]}  Rxg3+ {[%clk 0:00:16]} 35. fxg3 {[%clk 0:00:04]}  Qd3 {[%clk 0:00:11]} 36. Rc3 {[%clk 0:00:03]}  Qd1+ {[%clk 0:00:11]} 37. Kg2 {[%clk 0:00:03]}  Rb8 {[%clk 0:00:10]} 38. Rc2 {[%clk 0:00:00]}  Rb1 {[%clk 0:00:09]} 0-1

[Event "December 19 Late 2023"]
[Site "https://www.chess.com"]
[Date "2023.12.19"]
[Round "5"]
[White "Yeletsky, Ivan"]
[Black "Deac, Bogdan-Daniel"]
[Result "1-0"]
[Board "11"]
[TimeControl "180+1"]
[WhiteFideId "24180327"]
[BlackFideId "1226380"]
[WhiteElo "2379"]
[BlackElo "2641"]
[WhiteTeam "RUS"]
[BlackTeam "ROU"]
[WhiteClock "0:00:08"]
[BlackClock "0:00:02"]

1. d4 {[%clk 0:03:00]}  Nf6 {[%clk 0:02:58]} 2. c4 {[%clk 0:03:01]}  e6 {[%clk 0:02:57]} 3. Bf4 {[%clk 0:03:00]}  d5 {[%clk 0:02:54]} 4. cxd5 {[%clk 0:03:01]}  Nxd5 {[%clk 0:02:54]} 5. Bg3 {[%clk 0:03:01]}  c5 {[%clk 0:02:55]} 6. e4 {[%clk 0:03:01]}  Nf6 {[%clk 0:02:55]} 7. Nd2 {[%clk 0:03:00]}  Qxd4 {[%clk 0:02:55]} 8. Ngf3 {[%clk 0:03:00]}  Qd8 {[%clk 0:02:56]} 9. e5 {[%clk 0:02:57]}  Nd5 {[%clk 0:02:55]} 10. Bd3 {[%clk 0:02:51]}  Nb4 {[%clk 0:02:51]} 11. Be4 {[%clk 0:02:44]}  Nd3+ {[%clk 0:02:49]} 12. Kf1 {[%clk 0:02:43]}  Nb4 {[%clk 0:02:49]} 13. a3 {[%clk 0:02:42]}  Nd5 {[%clk 0:02:48]} 14. h4 {[%clk 0:02:42]}  Bd7 {[%clk 0:02:45]} 15. Kg1 {[%clk 0:02:38]}  Bc6 {[%clk 0:02:36]} 16. h5 {[%clk 0:02:38]}  h6 {[%clk 0:02:35]} 17. Qe2 {[%clk 0:02:25]}  Nd7 {[%clk 0:02:23]} 18. Rh4 {[%clk 0:02:19]}  Be7 {[%clk 0:02:11]} 19. Rg4 {[%clk 0:02:19]}  O-O {[%clk 0:02:12]} 20. Re1 {[%clk 0:02:08]}  f5 {[%clk 0:02:05]} 21. exf6 {[%clk 0:02:08]}  N7xf6 {[%clk 0:02:02]} 22. Ne5 {[%clk 0:01:31]}  Be8 {[%clk 0:00:55]} 23. Rg6 {[%clk 0:01:27]}  Nxe4 {[%clk 0:00:47]} 24. Qxe4 {[%clk 0:01:16]}  Nf6 {[%clk 0:00:46]} 25. Qe2 {[%clk 0:01:11]}  Nxh5 {[%clk 0:00:46]} 26. Rxe6 {[%clk 0:00:45]}  Nxg3 {[%clk 0:00:41]} 27. fxg3 {[%clk 0:00:46]}  Bf6 {[%clk 0:00:30]} 28. Ndf3 {[%clk 0:00:46]}  Qd5 {[%clk 0:00:23]} 29. Ng4 {[%clk 0:00:38]}  Bd4+ {[%clk 0:00:19]} 30. Kh1 {[%clk 0:00:31]}  Bd7 {[%clk 0:00:12]} 31. Nxd4 {[%clk 0:00:18]}  cxd4 {[%clk 0:00:11]} 32. Nxh6+ {[%clk 0:00:08]}  gxh6 {[%clk 0:00:09]} 33. Qg4+ {[%clk 0:00:06]}  Qg5 {[%clk 0:00:09]} 34. Rg6+ {[%clk 0:00:06]}  Kh7 {[%clk 0:00:08]} 35. Rxg5 {[%clk 0:00:02]}  Bxg4 {[%clk 0:00:08]} 36. Rxg4 {[%clk 0:00:03]}  Rad8 {[%clk 0:00:03]} 37. Re7+ {[%clk 0:00:03]}  Kh8 {[%clk 0:00:04]} 38. Rgg7 {[%clk 0:00:04]}  Rfe8 {[%clk 0:00:04]} 39. Rh7+ {[%clk 0:00:04]}  Kg8 {[%clk 0:00:04]} 40. Rhg7+ {[%clk 0:00:05]}  Kh8 {[%clk 0:00:04]} 41. Rh7+ {[%clk 0:00:06]}  Kg8 {[%clk 0:00:04]} 42. Reg7+ {[%clk 0:00:06]}  Kf8 {[%clk 0:00:05]} 43. Rxb7 {[%clk 0:00:07]}  Kg8 {[%clk 0:00:05]} 44. Rbg7+ {[%clk 0:00:07]}  Kf8 {[%clk 0:00:06]} 45. Rxa7 {[%clk 0:00:07]}  Kg8 {[%clk 0:00:06]} 46. Rag7+ {[%clk 0:00:06]}  Kf8 {[%clk 0:00:06]} 47. Rd7 {[%clk 0:00:07]}  Kg8 {[%clk 0:00:07]} 48. Rhe7 {[%clk 0:00:07]}  Rxd7 {[%clk 0:00:05]} 49. Rxd7 {[%clk 0:00:06]}  Re2 {[%clk 0:00:06]} 50. b4 {[%clk 0:00:05]}  Ra2 {[%clk 0:00:05]} 51. Rxd4 {[%clk 0:00:03]}  Rxa3 {[%clk 0:00:06]} 52. Kh2 {[%clk 0:00:03]}  Rb3 {[%clk 0:00:05]} 53. Kh3 {[%clk 0:00:03]}  Kg7 {[%clk 0:00:05]} 54. Rd7+ {[%clk 0:00:03]}  Kg6 {[%clk 0:00:05]} 55. Rb7 {[%clk 0:00:04]}  h5 {[%clk 0:00:05]} 56. Kh4 {[%clk 0:00:04]}  Rb1 {[%clk 0:00:04]} 57. g4 {[%clk 0:00:04]}  hxg4 {[%clk 0:00:04]} 58. Kxg4 {[%clk 0:00:04]}  Rb2 {[%clk 0:00:04]} 59. g3 {[%clk 0:00:05]}  Rb3 {[%clk 0:00:05]} 60. Kf4 {[%clk 0:00:05]}  Rb1 {[%clk 0:00:05]} 61. Rb6+ {[%clk 0:00:05]}  Kf7 {[%clk 0:00:05]} 62. g4 {[%clk 0:00:06]}  Rf1+ {[%clk 0:00:04]} 63. Kg5 {[%clk 0:00:06]}  Rg1 {[%clk 0:00:04]} 64. Rb7+ {[%clk 0:00:06]}  Kg8 {[%clk 0:00:04]} 65. b5 {[%clk 0:00:07]}  Rb1 {[%clk 0:00:04]} 66. Rb8+ {[%clk 0:00:07]}  Kg7 {[%clk 0:00:04]} 67. Rb7+ {[%clk 0:00:07]}  Kg8 {[%clk 0:00:04]} 68. b6 {[%clk 0:00:08]}  Rb4 {[%clk 0:00:02]} 69. Kf5 {[%clk 0:00:08]}  Rb5+ {[%clk 0:00:02]} 70. Kf6 {[%clk 0:00:09]}  Rb4 {[%clk 0:00:02]} 71. g5 {[%clk 0:00:08]} 1-0